bitfinex/quotes_BTCUSD_20240723
["timestamp","ask_amount","ask_price","bid_price","bid_amount"]
[1721776810387,2.254586,66072.0,66071.0,0.144872]
[1721776810596,3.254586,66072.0,66071.0,0.144872]
[1721776810798,3.954586,66072.0,66071.0,0.144872]
[1721776811332,3.977586,66072.0,66071.0,0.144872]
[1721776812342,4.280286,66072.0,66071.0,0.082972]
[1721776812584,4.294286,66072.0,66071.0,0.082972]
[1721776812964,4.308286,66072.0,66071.0,0.082972]
[1721776813982,4.294286,66072.0,66071.0,0.082972]
[1721776814335,4.33385946,66072.0,66071.0,0.082972]
[1721776815740,4.34785946,66072.0,66071.0,0.082972]
[1721776816367,4.33385946,66072.0,66071.0,0.082972]
[1721776816792,4.34785946,66072.0,66071.0,0.082972]
[1721776817192,4.33385946,66072.0,66071.0,0.082972]
[1721776817396,3.33385946,66072.0,66071.0,0.082972]
[1721776817659,3.33385946,66072.0,66056.0,0.009372]
[1721776817660,2.587352,66062.0,66056.0,0.009372]
[1721776817863,6.42135642,66062.0,66056.0,0.009372]
[1721776818042,1.869852,66062.0,66056.0,0.009372]
[1721776818196,1.184607,66062.0,66056.0,0.009372]
[1721776818410,0.025,66062.0,66056.0,0.009372]
[1721776818592,0.151355,66070.0,66056.0,0.13286142]
[1721776818802,0.05174577,66072.0,66067.0,0.2183]
[1721776818990,0.7,66068.0,66067.0,0.2183]
[1721776819193,0.3,66066.0,66060.0,0.2183]
[1721776819468,0.03774577,66072.0,66063.0,0.07348942]
[1721776819681,0.3,66071.0,66070.0,0.2183]
[1721776819881,0.7,66065.0,66064.0,0.2183]
[1721776820080,0.3,66071.0,66064.0,0.2183]
[1721776820416,0.7,66067.0,66064.0,0.2183]
[1721776820617,0.7,66066.0,66065.0,0.0326]
[1721776821322,0.7,66066.0,66065.0,0.0186]
[1721776822026,0.714,66066.0,66065.0,0.0186]
[1721776822428,0.7,66066.0,66065.0,0.0186]
[1721776822936,0.714,66066.0,66065.0,0.0186]
[1721776823541,0.714,66066.0,66065.0,0.0196]
[1721776823542,0.728,66066.0,66065.0,0.0196]
[1721776823690,1.265363,66066.0,66065.0,0.0186]
[1721776824038,1.56809,66066.0,66065.0,0.0196]
[1721776824447,1.870817,66066.0,66065.0,0.0196]
[1721776824708,1.884817,66066.0,66065.0,0.0206]
[1721776824906,1.56809,66066.0,66065.0,0.0196]
[1721776825137,1.57309,66066.0,66065.0,0.0206]
[1721776825837,1.870817,66066.0,66065.0,0.0196]
[1721776825967,1.861817,66066.0,66065.0,0.0196]
[1721776826378,1.875817,66066.0,66065.0,0.0206]
[1721776826574,2.178544,66066.0,66065.0,0.0196]
[1721776826763,2.178544,66066.0,66065.0,0.0206]
[1721776826985,2.192544,66066.0,66065.0,0.002]
[1721776827186,2.215544,66066.0,66065.0,0.002]
[1721776827385,2.192544,66066.0,66065.0,0.002]
[1721776827586,2.192544,66066.0,66065.0,0.001]
[1721776827587,2.476271,66066.0,66065.0,0.001]
[1721776827836,2.476271,66066.0,66058.0,0.027972]
[1721776827837,1.059607,66062.0,66058.0,0.027972]
[1721776828031,1.159607,66062.0,66058.0,0.027972]
[1721776828262,1.512352,66062.0,66058.0,0.027972]
[1721776829768,1.526352,66062.0,66058.0,0.027972]
[1721776829972,1.512352,66062.0,66058.0,0.027972]
[1721776830525,1.526352,66062.0,66058.0,0.027972]
[1721776831018,1.540352,66062.0,66058.0,0.027972]
[1721776831172,2.540352,66062.0,66058.0,0.027972]
[1721776831589,2.526352,66062.0,66058.0,0.027972]
[1721776831793,2.540352,66062.0,66058.0,0.027972]
[1721776831990,1.526352,66062.0,66058.0,0.027972]
[1721776832214,1.223607,66062.0,66058.0,0.027972]
[1721776832477,2.223607,66062.0,66058.0,0.027972]
[1721776832829,1.223607,66062.0,66058.0,0.027972]
[1721776833231,2.223607,66062.0,66058.0,0.027972]
[1721776833636,2.237607,66062.0,66058.0,0.027972]
[1721776833816,2.223607,66062.0,66058.0,0.027972]
[1721776834001,2.209607,66062.0,66058.0,0.027972]
[1721776834205,2.223607,66062.0,66058.0,0.027972]
[1721776835383,2.237607,66062.0,66058.0,0.009372]
[1721776835558,2.223607,66062.0,66058.0,0.009372]
[1721776835761,2.209607,66062.0,66058.0,0.009372]
[1721776835966,2.223607,66062.0,66058.0,0.009372]
[1721776836177,2.209607,66062.0,66058.0,0.009372]
[1721776836607,2.535724,66062.0,66058.0,0.009372]
[1721776836806,2.232979,66062.0,66058.0,0.009372]
[1721776837107,2.968177,66062.0,66058.0,0.009372]
[1721776837325,2.982177,66062.0,66058.0,0.009372]
[1721776837522,3.444422,66062.0,66058.0,0.009372]
[1721776837722,3.467422,66062.0,66058.0,0.009372]
[1721776837896,3.453422,66062.0,66058.0,0.009372]
[1721776838097,3.772022,66062.0,66058.0,0.009372]
[1721776838282,3.903122,66062.0,66058.0,0.009372]
[1721776838826,3.889122,66062.0,66058.0,0.009372]
[1721776839128,3.903122,66062.0,66058.0,0.009372]
[1721776839342,3.917122,66062.0,66058.0,0.009372]
[1721776839525,3.903122,66062.0,66058.0,0.009372]
[1721776839709,4.219867,66062.0,66058.0,0.009372]
[1721776840031,3.917122,66062.0,66058.0,0.009372]
[1721776840467,4.219867,66062.0,66058.0,0.009372]
[1721776840594,4.205867,66062.0,66058.0,0.009372]
[1721776841023,4.219867,66062.0,66058.0,0.009372]
[1721776841228,4.219867,66062.0,66061.0,1e-06]
[1721776841432,4.919867,66062.0,66061.0,1e-06]
[1721776842046,4.891867,66062.0,66061.0,1e-06]
[1721776842238,4.97140425,66062.0,66061.0,1e-06]
[1721776842393,4.99940425,66062.0,66061.0,1e-06]
[1721776842595,4.919867,66062.0,66061.0,1e-06]
[1721776842795,4.905867,66062.0,66061.0,1e-06]
[1721776843296,4.919867,66062.0,66061.0,1e-06]
[1721776843712,4.905867,66062.0,66061.0,1e-06]
[1721776844140,4.919867,66062.0,66061.0,1e-06]
[1721776846800,4.219867,66062.0,66061.0,1e-06]
[1721776847572,4.36258073,66062.0,66061.0,1e-06]
[1721776849409,4.36258073,66062.0,66057.0,1e-06]
[1721776849620,2.88495,66052.0,66051.0,0.002924]
[1721776849823,4.436103,66052.0,66051.0,0.002924]
[1721776850207,4.567603,66052.0,66051.0,0.002924]
[1721776850611,4.58469702,66052.0,66051.0,0.002924]
[1721776850827,4.59869702,66052.0,66051.0,0.002924]
[1721776851319,4.46393702,66052.0,66051.0,0.002924]
[1721776851516,4.47793702,66052.0,66051.0,0.002924]
[1721776852489,4.92232502,66052.0,66051.0,0.002924]
[1721776852714,4.44098702,66052.0,66051.0,0.002924]
[1721776854337,5.14098702,66052.0,66051.0,0.002924]
[1721776854543,4.44098702,66052.0,66051.0,0.002924]
[1721776855535,2.025004,66046.0,66034.0,0.009372]
[1721776855759,4.30915142,66046.0,66034.0,0.009372]
[1721776855961,3.90684742,66046.0,66034.0,0.009372]
[1721776856567,3.92084742,66046.0,66034.0,0.009372]
[1721776856770,3.93484742,66046.0,66034.0,0.009372]
[1721776857102,3.90684742,66046.0,66034.0,0.009372]
[1721776857304,3.67208742,66046.0,66034.0,0.009372]
[1721776857484,3.70008742,66046.0,66034.0,0.009372]
[1721776857682,3.68608742,66046.0,66034.0,0.009372]
[1721776857886,3.98890642,66046.0,66034.0,0.009372]
[1721776858081,4.68890642,66046.0,66034.0,0.009372]
[1721776858282,4.8219445,66046.0,66034.0,0.009372]
[1721776859409,4.8359445,66046.0,66034.0,0.009372]
[1721776859614,4.8079445,66046.0,66034.0,0.009372]
[1721776859968,4.8359445,66046.0,66034.0,0.009372]
[1721776860337,4.8219445,66046.0,66034.0,0.009372]
[1721776860692,4.76245508,66046.0,66034.0,0.009372]
[1721776860895,4.18664908,66046.0,66034.0,0.009372]
[1721776861324,4.35444908,66046.0,66034.0,0.009372]
[1721776861529,4.20804908,66046.0,66038.0,0.0186]
[1721776861753,4.20804908,66046.0,66034.0,0.009372]
[1721776862163,4.19404908,66046.0,66034.0,0.009372]
[1721776862636,4.20804908,66046.0,66034.0,0.009372]
[1721776863495,2.67822308,66046.0,66042.0,0.0186]
[1721776863648,2.66922308,66046.0,66042.0,0.0186]
[1721776863843,1.22090408,66046.0,66042.0,0.0186]
[1721776864054,1.073866,66046.0,66042.0,0.0186]
[1721776864251,1.059866,66046.0,66042.0,0.0186]
[1721776864693,1.073866,66046.0,66042.0,0.0186]
[1721776864870,1.096866,66046.0,66042.0,0.0186]
[1721776865076,1.082866,66046.0,66042.0,0.0186]
[1721776865395,2.059866,66046.0,66042.0,0.0186]
[1721776865594,2.187866,66046.0,66042.0,0.0186]
[1721776865769,2.173866,66046.0,66042.0,0.0186]
[1721776866141,2.187866,66046.0,66042.0,0.0186]
[1721776866565,1.187866,66046.0,66042.0,0.0186]
[1721776866768,2.187866,66046.0,66042.0,0.0186]
[1721776867726,2.650185,66046.0,66034.0,0.009372]
[1721776868027,3.361861,66046.0,66035.0,0.0186]
[1721776868855,3.347861,66046.0,66035.0,0.0186]
[1721776869040,3.333861,66046.0,66035.0,0.0186]
[1721776869240,3.347861,66046.0,66035.0,0.0186]
[1721776869642,3.65068,66046.0,66034.0,0.009372]
[1721776870076,3.7450196,66046.0,66034.0,0.009372]
[1721776870692,3.7170196,66046.0,66034.0,0.009372]
[1721776870823,3.7450196,66046.0,66034.0,0.009372]
[1721776871024,4.4450196,66046.0,66034.0,0.009372]
[1721776871444,4.4310196,66046.0,66034.0,0.009372]
[1721776871644,4.4450196,66046.0,66034.0,0.009372]
[1721776872054,4.4310196,66046.0,66034.0,0.009372]
[1721776872589,4.4450196,66046.0,66034.0,0.009372]
[1721776873569,4.4310196,66046.0,66034.0,0.009372]
[1721776873973,4.4450196,66046.0,66034.0,0.009372]
[1721776874494,4.45477421,66046.0,66034.0,0.009372]
[1721776875484,1.362766,66042.0,66034.0,0.009372]
[1721776875686,4.126624,66042.0,66034.0,0.009372]
[1721776876017,4.419325,66042.0,66034.0,0.009372]
[1721776876218,4.43515269,66042.0,66034.0,0.009372]
[1721776876379,4.39237669,66042.0,66034.0,0.009372]
[1721776876793,4.29940069,66042.0,66034.0,0.009372]
[1721776876985,4.31340069,66042.0,66034.0,0.009372]
[1721776877188,5.01340069,66042.0,66034.0,0.009372]
[1721776877394,5.02740069,66042.0,66034.0,0.009372]
[1721776877781,5.02740069,66042.0,66041.0,1e-06]
[1721776877980,5.33023769,66042.0,66041.0,1e-06]
[1721776878408,4.63023769,66042.0,66041.0,1e-06]
[1721776878583,5.33023769,66042.0,66041.0,1e-06]
[1721776879819,5.02740069,66042.0,66041.0,1e-06]
[1721776880018,4.42551769,66042.0,66041.0,1e-06]
[1721776880166,4.63951769,66042.0,66041.0,1e-06]
[1721776880533,2.82165269,66042.0,66041.0,1e-06]
[1721776880768,2.80765269,66042.0,66041.0,1e-06]
[1721776880967,3.82165269,66042.0,66041.0,1e-06]
[1721776881143,3.12165269,66042.0,66041.0,1e-06]
[1721776881346,2.12165269,66042.0,66041.0,1e-06]
[1721776881548,3.12165269,66042.0,66041.0,1e-06]
[1721776881699,3.09145869,66042.0,66041.0,1e-06]
[1721776881912,3.11445869,66042.0,66041.0,1e-06]
[1721776882517,2.93909369,66042.0,66041.0,1e-06]
[1721776882736,2.92509369,66042.0,66041.0,1e-06]
[1721776882938,2.91109369,66042.0,66041.0,1e-06]
[1721776883112,2.43975669,66042.0,66041.0,1e-06]
[1721776883336,2.42575669,66042.0,66041.0,1e-06]
[1721776883673,2.74259369,66042.0,66041.0,1e-06]
[1721776883873,2.45375669,66042.0,66041.0,1e-06]
[1721776884080,2.61182367,66042.0,66041.0,1e-06]
[1721776884206,4.03851467,66042.0,66041.0,1e-06]
[1721776884402,4.05251467,66042.0,66041.0,1e-06]
[1721776884722,4.39235167,66042.0,66041.0,1e-06]
[1721776884902,4.69505167,66042.0,66041.0,1e-06]
[1721776885118,4.68248469,66042.0,66041.0,1e-06]
[1721776885315,4.78166086,66042.0,66041.0,1e-06]
[1721776885503,5.78449786,66042.0,66041.0,1e-06]
[1721776886066,5.77049786,66042.0,66041.0,1e-06]
[1721776886300,5.45366086,66042.0,66041.0,1e-06]
[1721776886678,5.47946033,66042.0,66041.0,1e-06]
[1721776886894,5.46546033,66042.0,66041.0,1e-06]
[1721776887059,5.45146033,66042.0,66041.0,1e-06]
[1721776887282,5.46546033,66042.0,66041.0,1e-06]
[1721776888065,7.24620033,66042.0,66041.0,1e-06]
[1721776888262,6.94026533,66042.0,66041.0,1e-06]
[1721776888678,6.94054016,66042.0,66041.0,1e-06]
[1721776889483,6.94054016,66042.0,66031.0,0.002]
[1721776889484,3.025356,66032.0,66031.0,0.002]
[1721776889848,5.32972697,66032.0,66031.0,0.002]
[1721776890249,5.25533797,66032.0,66031.0,0.002]
[1721776890777,5.28333797,66032.0,66031.0,0.002]
[1721776890980,5.26933797,66032.0,66031.0,0.002]
[1721776891417,5.29916566,66032.0,66031.0,0.002]
[1721776891596,5.28659969,66032.0,66031.0,0.002]
[1721776892253,5.27259969,66032.0,66031.0,0.002]
[1721776892458,5.28659969,66032.0,66031.0,0.002]
[1721776892610,5.97259969,66032.0,66031.0,0.002]
[1721776892817,5.99916884,66032.0,66031.0,0.002]
[1721776893037,5.98516884,66032.0,66031.0,0.002]
[1721776893272,5.99916884,66032.0,66031.0,0.002]
[1721776893418,5.98659969,66032.0,66031.0,0.002]
[1721776893625,5.97259969,66032.0,66031.0,0.002]
[1721776893878,5.95859969,66032.0,66031.0,0.002]
[1721776894085,5.98659969,66032.0,66031.0,0.002]
[1721776895795,5.99415969,66032.0,66031.0,0.002]
[1721776896654,6.00672885,66032.0,66031.0,0.002]
[1721776896948,6.00672881,66032.0,66031.0,0.002]
[1721776898488,5.29272881,66032.0,66031.0,0.002]
[1721776898658,5.84104081,66032.0,66031.0,0.002]
[1721776899068,5.29485881,66032.0,66031.0,0.002]
[1721776899269,5.20566381,66032.0,66031.0,0.002]
[1721776899470,5.19166381,66032.0,66031.0,0.002]
[1721776899697,5.20566381,66032.0,66031.0,0.002]
[1721776899901,5.22088512,66032.0,66031.0,0.002]
[1721776900460,5.2068847,66032.0,66031.0,0.002]
[1721776900865,4.5208847,66032.0,66031.0,0.002]
[1721776901470,4.5068847,66032.0,66031.0,0.002]
[1721776901869,4.5208847,66032.0,66031.0,0.002]
[1721776902073,5.2208847,66032.0,66031.0,0.002]
[1721776902237,5.2068847,66032.0,66031.0,0.002]
[1721776902436,5.9068847,66032.0,66031.0,0.002]
[1721776903136,5.8928847,66032.0,66031.0,0.002]
[1721776903353,5.9068847,66032.0,66031.0,0.002]
[1721776903662,5.6180017,66032.0,66031.0,0.002]
[1721776903868,4.8094817,66032.0,66031.0,0.002]
[1721776904230,3.50370659,66032.0,66031.0,0.002]
[1721776904402,4.50370659,66032.0,66031.0,0.002]
[1721776904606,4.48970659,66032.0,66031.0,0.002]
[1721776904983,4.50370659,66032.0,66031.0,0.002]
[1721776905186,4.48970659,66032.0,66031.0,0.002]
[1721776905386,3.78970659,66032.0,66031.0,0.002]
[1721776905586,3.77570659,66032.0,66031.0,0.002]
[1721776905827,4.48970659,66032.0,66031.0,0.002]
[1721776906592,4.50370659,66032.0,66031.0,0.002]
[1721776907602,4.36328429,66032.0,66031.0,0.002]
[1721776907807,3.66328429,66032.0,66031.0,0.002]
[1721776909566,3.66328429,66032.0,66031.0,0.002924]
[1721776909763,3.72402029,66032.0,66031.0,0.002924]
[1721776909966,4.56742029,66032.0,66031.0,0.002924]
[1721776910386,4.87030329,66032.0,66031.0,0.002924]
[1721776910952,4.87030115,66032.0,66031.0,0.002924]
[1721776911553,4.56741815,66032.0,66031.0,0.002924]
[1721776912764,4.87030115,66032.0,66031.0,0.002924]
[1721776913837,4.85630115,66032.0,66031.0,0.002924]
[1721776914050,4.84230115,66032.0,66031.0,0.002924]
[1721776914256,6.30929239,66032.0,66031.0,0.002924]
[1721776914458,6.29529239,66032.0,66031.0,0.002924]
[1721776914830,6.32329239,66032.0,66031.0,0.002924]
[1721776915034,6.09329239,66032.0,66031.0,0.002924]
[1721776915258,6.07929239,66032.0,66031.0,0.002924]
[1721776915497,6.09329239,66032.0,66031.0,0.002924]
[1721776917066,6.18438767,66032.0,66031.0,0.002924]
[1721776917694,6.18440272,66032.0,66031.0,0.002924]
[1721776918039,6.17040272,66032.0,66031.0,0.002924]
[1721776918168,6.18395443,66032.0,66031.0,0.002924]
[1721776918576,6.16995443,66032.0,66031.0,0.002924]
[1721776919176,6.15595443,66032.0,66031.0,0.002924]
[1721776919783,5.45595443,66032.0,66031.0,0.002924]
[1721776920182,5.46995443,66032.0,66031.0,0.002924]
[1721776920386,5.48395443,66032.0,66031.0,0.002924]
[1721776920613,5.46995443,66032.0,66031.0,0.002924]
[1721776920804,5.46983842,66032.0,66031.0,0.002924]
[1721776921040,5.48383842,66032.0,66031.0,0.002924]
[1721776922833,6.18383842,66032.0,66031.0,0.002924]
[1721776926735,6.08073869,66032.0,66031.0,0.002924]
[1721776926913,6.18405356,66032.0,66031.0,0.002924]
[1721776928955,6.72364556,66032.0,66031.0,0.002924]
[1721776929166,6.48364556,66032.0,66031.0,0.002924]
[1721776930176,6.38033069,66032.0,66031.0,0.002924]
[1721776930381,6.48349011,66032.0,66031.0,0.002924]
[1721776930967,6.46949011,66032.0,66031.0,0.002924]
[1721776931207,6.46949011,66032.0,66014.0,0.0186]
[1721776931208,1.2,66015.0,66014.0,0.0186]
[1721776931424,1.2,66015.0,66004.0,0.009372]
[1721776931425,0.454462,66012.0,66010.0,0.0186]
[1721776931625,1.19597533,66012.0,66010.0,0.0186]
[1721776931825,1.54895033,66012.0,66010.0,0.0186]
[1721776933219,1.56295033,66012.0,66010.0,0.0186]
[1721776933422,1.5629482,66012.0,66010.0,0.0186]
[1721776933626,1.5769482,66012.0,66010.0,0.0186]
[1721776934250,1.5629482,66012.0,66010.0,0.0186]
[1721776934476,1.5769482,66012.0,66010.0,0.0186]
[1721776934896,1.60070991,66012.0,66010.0,0.0186]
[1721776935274,1.58670991,66012.0,66010.0,0.0186]
[1721776935683,1.58670991,66012.0,66004.0,0.009372]
[1721776935864,1.58670991,66012.0,66007.0,0.0186]
[1721776936182,1.60070991,66012.0,66007.0,0.0186]
[1721776936693,1.58670991,66012.0,66007.0,0.0186]
[1721776936826,1.60070991,66012.0,66007.0,0.0186]
[1721776937240,2.60070991,66012.0,66007.0,0.0186]
[1721776937846,1.60070991,66012.0,66007.0,0.0186]
[1721776938096,2.60070991,66012.0,66007.0,0.0186]
[1721776938859,2.60070993,66012.0,66007.0,0.0186]
[1721776940585,2.60070993,66012.0,66004.0,0.009372]
[1721776940586,1.97175993,66012.0,66011.0,0.0206]
[1721776940796,0.97175993,66012.0,66011.0,0.0206]
[1721776940994,1.66878493,66012.0,66011.0,0.0206]
[1721776941198,1.26580993,66012.0,66011.0,0.0206]
[1721776941402,0.10032293,66012.0,66011.0,0.0206]
[1721776941604,0.80032293,66012.0,66011.0,0.021524]
[1721776941808,0.80032293,66012.0,66011.0,0.071524]
[1721776941958,0.81432293,66012.0,66011.0,0.071524]
[1721776942181,0.80032293,66012.0,66011.0,0.071524]
[1721776942961,0.81432293,66012.0,66011.0,0.071524]
[1721776943293,0.78632683,66012.0,66011.0,0.071524]
[1721776943491,0.88632683,66012.0,66011.0,0.071524]
[1721776943717,0.90032683,66012.0,66011.0,0.071524]
[1721776944270,0.90032683,66012.0,66011.0,0.021524]
[1721776944271,1.05181383,66012.0,66011.0,0.021524]
[1721776944443,1.35478883,66012.0,66011.0,0.021524]
[1721776944650,1.67176383,66012.0,66011.0,0.021524]
[1721776944894,1.35478883,66012.0,66011.0,0.021524]
[1721776945008,1.34078883,66012.0,66011.0,0.021524]
[1721776945213,1.34502712,66012.0,66011.0,0.021524]
[1721776945515,1.33102712,66012.0,66011.0,0.021524]
[1721776946090,1.31702712,66012.0,66011.0,0.021524]
[1721776946252,0.87656512,66012.0,66011.0,0.021524]
[1721776946657,0.87656512,66012.0,66011.0,0.071524]
[1721776946658,0.17656173,66012.0,66011.0,0.071524]
[1721776946858,0.77656173,66012.0,66011.0,0.071524]
[1721776947177,0.89056173,66012.0,66011.0,0.071524]
[1721776949058,0.89056173,66012.0,66011.0,0.021524]
[1721776949496,0.84056173,66012.0,66011.0,0.021524]
[1721776949930,0.84056125,66012.0,66011.0,0.021524]
[1721776950565,0.84056125,66012.0,66011.0,0.071524]
[1721776951001,1.14056125,66012.0,66011.0,0.021524]
[1721776951808,0.84056125,66012.0,66011.0,0.071524]
[1721776952023,0.84056125,66012.0,66011.0,0.021524]
[1721776952592,0.14056125,66012.0,66011.0,0.071524]
[1721776953002,0.84056125,66012.0,66011.0,0.071524]
[1721776953219,0.128,66012.0,66011.0,0.071524]
[1721776953387,0.1405644,66012.0,66011.0,0.071524]
[1721776953831,0.1405644,66012.0,66011.0,0.021524]
[1721776954890,0.1905644,66012.0,66011.0,0.021524]
[1721776956567,0.19056445,66012.0,66011.0,0.021524]
[1721776956966,0.34205145,66012.0,66011.0,0.021524]
[1721776957164,0.94800145,66012.0,66011.0,0.021524]
[1721776957393,0.94800145,66012.0,66011.0,0.002924]
[1721776957394,1.25097645,66012.0,66011.0,0.002924]
[1721776959060,0.19056445,66012.0,66011.0,0.071524]
[1721776959255,0.09056445,66012.0,66011.0,0.021524]
[1721776959456,0.94205145,66012.0,66011.0,0.021524]
[1721776959655,1.232462,66012.0,66011.0,0.021524]
[1721776959858,1.54800137,66012.0,66011.0,0.021524]
[1721776960060,1.95097637,66012.0,66011.0,0.002924]
[1721776961269,1.64800137,66012.0,66011.0,0.002924]
[1721776961687,1.211303,66005.0,66004.0,0.009372]
[1721776961795,1.47008137,66005.0,66004.0,0.009372]
[1721776961994,1.87308837,66005.0,66004.0,0.009372]
[1721776962205,2.16188837,66005.0,66004.0,0.009372]
[1721776962429,2.11618837,66005.0,66004.0,0.009372]
[1721776962650,2.07818837,66005.0,66004.0,0.009372]
[1721776962853,2.065624,66005.0,66004.0,0.009372]
[1721776963058,2.63650784,66005.0,66004.0,0.009372]
[1721776964101,2.62250784,66005.0,66004.0,0.009372]
[1721776964523,2.31950084,66005.0,66004.0,0.009372]
[1721776964658,2.28529184,66005.0,66004.0,0.009372]
[1721776965057,2.58829884,66005.0,66004.0,0.009372]
[1721776965258,2.57429884,66005.0,66004.0,0.009372]
[1721776965483,2.58829884,66005.0,66004.0,0.009372]
[1721776966230,2.586022,66005.0,66004.0,0.009372]
[1721776966365,2.6029719,66005.0,66004.0,0.009372]
[1721776966566,2.6649719,66005.0,66004.0,0.009372]
[1721776966911,2.6369719,66005.0,66004.0,0.009372]
[1721776967116,2.6509719,66005.0,66004.0,0.009372]
[1721776967339,2.6649719,66005.0,66004.0,0.009372]
[1721776968120,2.6509719,66005.0,66004.0,0.009372]
[1721776968325,2.6369719,66005.0,66004.0,0.009372]
[1721776968524,2.6509719,66005.0,66004.0,0.009372]
[1721776968751,2.6649719,66005.0,66004.0,0.009372]
[1721776969438,2.6509719,66005.0,66004.0,0.009372]
[1721776969640,2.937029,66005.0,66004.0,0.009372]
[1721776969958,2.65110309,66005.0,66004.0,0.009372]
[1721776970363,2.96811009,66005.0,66004.0,0.009372]
[1721776970927,2.95411009,66005.0,66004.0,0.009372]
[1721776971101,1.523394,66002.0,66001.0,0.009372]
[1721776971298,3.02033909,66002.0,66001.0,0.009372]
[1721776971504,1.417385,65999.0,65991.0,0.002]
[1721776971828,1.600732,65995.0,65991.0,0.002]
[1721776971953,3.22833062,65995.0,65991.0,0.002]
[1721776972155,2.65633762,65995.0,65991.0,0.002]
[1721776972381,1.65633762,65995.0,65991.0,0.002]
[1721776972829,2.65633762,65995.0,65991.0,0.002]
[1721776973084,2.65938985,65995.0,65991.0,0.002]
[1721776973324,2.67338985,65995.0,65991.0,0.002]
[1721776973653,2.65938985,65995.0,65991.0,0.002]
[1721776973935,2.67338985,65995.0,65991.0,0.002]
[1721776974879,2.68738985,65995.0,65991.0,0.002]
[1721776976470,2.68714783,65995.0,65991.0,0.002]
[1721776979722,2.657838,65995.0,65991.0,0.002]
[1721776979920,2.68711196,65995.0,65991.0,0.002]
[1721776981000,1.21795896,65995.0,65991.0,0.002]
[1721776981186,2.21795896,65995.0,65991.0,0.002]
[1721776982304,2.188685,65995.0,65991.0,0.002]
[1721776982511,2.21723218,65995.0,65991.0,0.002]
[1721776983954,1.21723218,65995.0,65991.0,0.002]
[1721776984150,2.21723218,65995.0,65991.0,0.002]
[1721776985612,1.21723218,65995.0,65991.0,0.002]
[1721776985805,2.21782175,65995.0,65991.0,0.002]
[1721776989460,2.188685,65995.0,65991.0,0.002]
[1721776989663,2.2174244,65995.0,65991.0,0.002]
[1721776992695,2.21698177,65995.0,65991.0,0.002]
[1721776995695,2.2075571,65995.0,65991.0,0.002]
[1721776996122,2.20733279,65995.0,65991.0,0.002]
[1721776996483,2.19333279,65995.0,65991.0,0.002]
[1721776996722,2.18875598,65995.0,65991.0,0.002]
[1721776996923,0.04207098,65995.0,65994.0,0.012383]
[1721776997122,0.05607098,65995.0,65994.0,0.03378369]
[1721776997324,0.75607098,65995.0,65994.0,0.033777]
[1721776997548,0.75607098,65995.0,65994.0,0.030983]
[1721776997769,0.75607098,65995.0,65994.0,0.080983]
[1721776998348,0.75607098,65995.0,65994.0,0.030983]
[1721776998349,0.85607098,65995.0,65994.0,0.030983]
[1721776999043,0.84207098,65995.0,65994.0,0.030983]
[1721776999264,0.828,65995.0,65994.0,0.080983]
[1721776999427,0.86504315,65995.0,65994.0,0.080983]
[1721776999592,0.83704315,65995.0,65994.0,0.080983]
[1721776999792,0.85104315,65995.0,65994.0,0.080983]
[1721777000040,0.86504315,65995.0,65994.0,0.080983]
[1721777000240,0.85104315,65995.0,65994.0,0.080983]
[1721777000603,0.86504315,65995.0,65994.0,0.030983]
[1721777000802,0.86504315,65995.0,65994.0,0.080983]
[1721777000803,0.85104315,65995.0,65994.0,0.080983]
[1721777001860,0.83704315,65995.0,65994.0,0.080983]
[1721777002253,0.86504315,65995.0,65994.0,0.080983]
[1721777002461,0.85104315,65995.0,65994.0,0.080983]
[1721777002664,0.86450885,65995.0,65994.0,0.080983]
[1721777003007,0.85050885,65995.0,65994.0,0.080983]
[1721777003542,0.83650885,65995.0,65994.0,0.080983]
[1721777003770,0.85050885,65995.0,65994.0,0.030983]
[1721777003966,0.86450885,65995.0,65994.0,0.030983]
[1721777005060,0.85050885,65995.0,65994.0,0.030983]
[1721777005293,0.83650885,65995.0,65994.0,0.030983]
[1721777005489,0.85050885,65995.0,65994.0,0.030983]
[1721777005832,0.85050885,65995.0,65994.0,0.080983]
[1721777005990,0.85050885,65995.0,65994.0,0.030983]
[1721777006201,0.86820364,65995.0,65994.0,0.080983]
[1721777006394,0.84020364,65995.0,65994.0,0.080983]
[1721777006624,0.85420364,65995.0,65994.0,0.080983]
[1721777006825,0.16820364,65995.0,65994.0,0.080983]
[1721777007026,0.15420364,65995.0,65994.0,0.080983]
[1721777007227,0.15420364,65995.0,65994.0,0.180983]
[1721777007386,0.02342037,65995.0,65994.0,0.180983]
[1721777008507,0.03742037,65995.0,65994.0,0.080983]
[1721777008776,0.03742037,65995.0,65994.0,0.180983]
[1721777008986,0.028,65995.0,65994.0,0.180983]
[1721777009155,0.03742037,65995.0,65994.0,0.180983]
[1721777009359,0.06958784,65995.0,65994.0,0.080983]
[1721777009557,0.028,65995.0,65994.0,0.080983]
[1721777009775,0.0695917,65995.0,65994.0,0.030983]
[1721777009953,0.0695917,65995.0,65994.0,0.080983]
[1721777011280,0.2211177,65995.0,65994.0,0.059383]
[1721777011432,0.3211177,65995.0,65994.0,0.059383]
[1721777013110,0.28894804,65995.0,65994.0,0.059383]
[1721777013316,0.279526,65995.0,65994.0,0.059383]
[1721777013554,0.32068209,65995.0,65994.0,0.059383]
[1721777014260,0.32068209,65995.0,65994.0,0.009383]
[1721777014471,0.32068209,65995.0,65994.0,0.059383]
[1721777014678,0.92678809,65995.0,65994.0,0.009383]
[1721777014881,0.68853509,65995.0,65994.0,0.009383]
[1721777016481,0.68892659,65995.0,65994.0,0.009383]
[1721777016886,0.68881739,65995.0,65994.0,0.009383]
[1721777018094,0.99187039,65995.0,65994.0,0.009383]
[1721777018879,0.68881739,65995.0,65994.0,0.009383]
[1721777019241,0.99187039,65995.0,65994.0,0.009383]